Cogmind - Beta 15 @@@ ROGUE MODE // 2025.05.22 @ 20:01:27 Player: gorb Result: Destroyed by G-47 Trooper with Particle Gun Performance ------------- Evolutions (2) 1000 Regions Visited (5) 1000 Robots Destroyed (33) 165 Value Destroyed (1069) 1069 Prototype IDs (1) 20 Alien Tech Used (0) 0 Bonus (105) 105 TOTAL SCORE: 3359 Bonus ------- Follower Combat Kills 105 Cogmind --------- Core Integrity 0/550 Matter 300/300 Energy 98/100 System Corruption 8% Temperature Cool (9) Movement Core (50) Location -8/Storage Parts ------- > --- POWER (2) -------- (None) > --- PROPULSION (4) --- (None) > --- UTILITY (3) ------ (None) > --- WEAPON (2) ------- (None) > --- INVENTORY (5) ---- Aluminum Leg Improved VTOL Module Improved VTOL Module Improved VTOL Module ECM Suite Peak State ------------ > --- POWER ------------ Light Ion Engine Light Nuclear Core > --- PROPULSION ------- Aerolev Unit Aerolev Unit Aerolev Unit Aerolev Unit > --- UTILITY ---------- Small Storage Unit Weight Redist. System Advanced Targeting Computer > --- WEAPON ----------- Heavy Assault Rifle Assault Cannon > --- INVENTORY -------- Aluminum Leg Improved VTOL Module Improved VTOL Module Improved VTOL Module Improved VTOL Module ECM Suite Mining Laser Katana [Rating: 33] Favorites ----------- Power Light Ion Engine Engine Light Ion Engine Power Core Light Nuclear Core Propulsion Aluminum Leg Leg Aluminum Leg Wheel Wheel Hover Unit Aerolev Unit Utility Small Storage Unit Device Weight Redist. System Storage Small Storage Unit Processor Advanced Targeting Computer Hackware Hacking Suite Protection Core Shielding Weapon Field Laser Energy Gun Field Laser Ballistic Gun Heavy Assault Rifle Ballistic Cannon Assault Cannon Special Weapon Mining Laser Slashing Weapon Katana Build | -11 -10 -10 -9 -8 -8 ------- Run | Yrd Mat Min Mat Mat Sto Slots Evolved 4 | . . . 2 2 . Power 1 | . . . . 1 . Propulsion 2 | . . . 2 . . Utility 1 | . . . . 1 . Weapon . | . . . . . . Parts Attached 40 | 6 1 . 5 20 8 Power 9 | 1 . . 1 5 2 Engine 4 | 1 . . 1 2 . Core 5 | . . . . 3 2 Reactor . | . . . . . . Propulsion 15 | 2 . . 2 7 4 Treads . | . . . . . . Leg 9 | . . . 2 7 . Wheel 2 | 2 . . . . . Hover 4 | . . . . . 4 Flight . | . . . . . . Utility 5 | 1 1 . . 3 . Device 1 | . . . . 1 . Storage 1 | 1 . . . . . Processor 1 | . . . . 1 . Hackware 1 | . . . . 1 . Protection 1 | . 1 . . . . Artifact . | . . . . . . Weapon 11 | 2 . . 2 5 2 Energy Gun 6 | 2 . . 2 2 . Energy Cannon . | . . . . . . Ballistic Gun 1 | . . . . 1 . Ballistic Cannon 2 | . . . . 2 . Launcher . | . . . . . . Special Weapon 1 | . . . . . 1 Impact Weapon . | . . . . . . Slashing Weapon 1 | . . . . . 1 Piercing Weapon . | . . . . . . Special Melee Weapon . | . . . . . . Unidentified Prototypes 1 | . . . . . 1 Parts Lost 26 | . . . 2 14 10 Power 7 | . . . 1 3 3 Propulsion 9 | . . . 1 5 3 Utility 4 | . . . . 2 2 Weapon 6 | . . . . 4 2 Highest Loss Streak 6 | . . . 1 4 6 To Critical Strikes 1 | . . . . 1 . Average Backups 5 | 2 4 5 6 5 5 Power . | . 1 1 1 . . Propulsion 2 | 1 2 2 2 . 4 Utility . | . . . . . 1 Weapon 2 | . 1 2 2 3 . Tool/Special . | . . . . . . Unused Backups 7 | . . . 2 . 5 Power 1 | . . . 1 . . Propulsion 4 | . . . . . 4 Utility 1 | . . . . . 1 Weapon 1 | . . . 1 . . Tool/Special . | . . . . . . Average Slot Usage (%) 77 | . 87 100 75 80 69 Engine 8 | . 14 14 10 8 4 Core 3 | . . . . 5 5 Leg 12 | . . . 1 26 4 Wheel 7 | . 28 28 19 . . Hover 5 | . . . . . 20 Device 2 | . . . . . 8 Storage 9 | . 14 14 11 9 6 Processor 3 | . . . . 5 4 Hackware 1 | . . . . 2 . Protection 6 | . 2 14 11 8 . Energy Gun 12 | . 28 28 22 12 . Ballistic Gun 1 | . . . . . 4 Ballistic Cannon 1 | . . . . 1 3 Slashing Weapon 1 | . . . . . 3 Peak Build Rating 33 | 6 7 7 13 20 33 Average Rating 14 | 3 6 7 10 15 20 On Entrance 8 | . 6 7 7 13 19 Naked Turns 39 | . . . . . 39 Heaviest Build 22 | 11 12 12 15 22 22 Greatest Support 46 | 26 26 26 26 46 46 Greatest Overweight (x) 5 | . . . 1 5 1 Average Overweight (x) . | . . . . . . Largest Inventory Capacity 8 | 8 8 8 8 8 8 Average Capacity 7 | 7 8 8 8 8 7 Most Carried 8 | 6 5 5 8 8 8 Average Carried 5 | 2 4 5 6 5 6 Final Capacity 8 | 8 8 8 8 8 5 Final Carried 7 | 4 5 5 7 2 5 Class Distribution -------------------- 92% | Mutant 7% | Scavenger-Mutant Dominant Class ---------------- Mutant | -10/Materials Mutant | -10/Mines Mutant | -9/Materials Mutant | -8/Materials Mutant | -8/Storage Resources | -11 -10 -10 -9 -8 -8 ----------- Run | Yrd Mat Min Mat Mat Sto Matter Collected 869 | 250 20 . 50 290 259 Remotely . | . . . . . . Salvage Created 1193 | . 67 . 255 550 321 Parts 63 | . 11 . 16 21 15 Haulers Intercepted . | . . . . . . Recyclers Shooed . | . . . . . . Parts Field Recycled . | . . . . . . Retrieved Matter . | . . . . . . Parts Self-Destructed . | . . . . . . Prevented . | . . . . . . Kills | -11 -10 -10 -9 -8 -8 ------- Run | Yrd Mat Min Mat Mat Sto Combat Hostiles Destroyed 30 | . 3 . 7 14 6 Melee 5 | . . . . . 5 Guns 20 | . 3 . 7 10 . Cannons 5 | . . . . 4 1 Classes Destroyed 6 | . 2 . 1 2 1 Watcher 3 | . 1 . 2 . . Swarmer 9 | . 3 . 3 3 . Grunt 14 | . . . 4 9 1 Brawler 2 | . . . . 1 1 Duelist 1 | . . . . . 1 Sentry 4 | . . . . 1 3 Best Kill Streak 5 | . 4 . 3 5 3 Combat Bots Only 5 | . 3 . 3 5 3 Max Kills in Single Turn 2 | . 2 . 1 1 1 Gunslinging 1 | . 1 . . . . Exploded . | . . . . . . Melee 1 | . . . . . 1 Uniques/NPCs Destroyed . | . . . . . . Combat | -11 -10 -10 -9 -8 -8 -------- Run | Yrd Mat Min Mat Mat Sto Hostile Shots Fired 259 | . 11 1 62 109 76 Missed 63 | . 2 . 23 17 21 Hits 196 | . 9 1 39 92 55 Melee 7 | . . . . 2 5 Projectile 189 | . 9 1 39 90 50 Critical Strikes 11 | . . . . 5 6 Actively Blocked 1 | . . . . 1 . Damage Taken 2989 | . 73 9 361 1341 1205 Core 681 | . 15 8 98 177 383 Absorbed by Shields . | . . . . . . Redirected to Shielding 51 | . . 1 17 33 . Core Remaining (%) 88 | 100 . 90 75 . . Volleys Fired 110 | . 7 . 21 58 24 Largest 2 | . 2 . 2 2 2 Hottest 126 | . 90 . 126 126 100 Shots Fired 172 | . 14 . 42 85 31 Gun 132 | . 14 . 42 64 12 Cannon 28 | . . . . 21 7 Launcher . | . . . . . . Special 12 | . . . . . 12 Kinetic 40 | . . . . 21 19 Thermal 132 | . 14 . 42 64 12 Explosive . | . . . . . . Electromagnetic . | . . . . . . Robot Hit Streak 8 | . 4 . 4 8 4 Robot Miss Streak 4 | . 2 . 2 4 3 Penetration Max . | . . . . . . Secondary Targets 3 | . 1 . 2 . . Max Gunslinging Chain 1 | . 1 . 1 . . Shots Hit Robots 113 | . 9 . 23 55 26 Core Hits 52 | . 5 . 11 26 10 Critical Kills . | . . . . . . Critical Parts Destroyed . | . . . . . . Critical Strikes 7 | . . . . 3 4 Burn 2 | . . . . 2 . Blast 1 | . . . . 1 . Sever 4 | . . . . . 4 Melee Attacks 19 | . . . . . 19 Impact . | . . . . . . Slashing 19 | . . . . . 19 Piercing . | . . . . . . Sneak Attacks . | . . . . . . Combat Hostiles . | . . . . . . Follow-up Attacks . | . . . . . . Damage Inflicted 2117 | . 108 . 367 1060 582 Guns 1307 | . 108 . 367 700 132 Cannons 423 | . . . . 347 76 Explosions . | . . . . . . Melee 362 | . . . . . 362 Ramming 25 | . . . . 13 12 Kinetic 555 | . . . . 347 208 Thermal 1175 | . 108 . 367 700 . Explosive . | . . . . . . Electromagnetic . | . . . . . . Impact . | . . . . . . Slashing 362 | . . . . . 362 Piercing . | . . . . . . Highest Corruption 8 | . . . . 3 8 Average Corruption 4 | . . . . 3 5 Corruption Purged . | . . . . . . Corruption Blocked . | . . . . . . Effects 18 | . . . . 9 9 Message Errors 2 | . . . . 1 1 Matter Fused 3 | . . . . 1 2 Heat Flow Errors 2 | . . . . 1 1 Energy Discharges 3 | . . . . 2 1 Parts Fused 1 | . . . . 1 . Data Loss (minor) 6 | . . . . 2 4 Weapon Failures 1 | . . . . 1 . Overload Shots . | . . . . . . Overflow Damage . | . . . . . . Projectiles . | . . . . . . Explosions . | . . . . . . Melee . | . . . . . . Knockbacks 13 | . . . . 12 1 Impact . | . . . . . . Kinetic 9 | . . . . 8 1 Secondary 4 | . . . . 4 . Self-Inflicted Damage 7 | . . . . 1 6 Shots . | . . . . . . Rammed 5 | . . . 1 1 3 Targets Rammed 6 | . . . 1 2 3 Kicked 1 | . . . . 1 . Crushed . | . . . . . . Highest Temperature 710 | . 120 . 430 710 436 Average Temperature 224 | . 56 . 128 272 272 Received Heat Transfer 1194 | . . . 69 711 414 Effects 34 | . . . 2 25 7 Shutdowns 10 | . . . . 8 2 Energy Bleed 6 | . . . 1 4 1 Interference 8 | . . . . 7 1 Matter Decay 4 | . . . . 2 2 Short Circuit 3 | . . . . 2 1 Damage (minor) 2 | . . . 1 1 . Damage (major) 1 | . . . . 1 . Siege Activations . | . . . . . . Martial Activations . | . . . . . . Shielding Activations . | . . . . . . Robots Disrupted . | . . . . . . Combat Hostiles . | . . . . . . Robots Corrupted . | . . . . . . Combat Hostiles . | . . . . . . Parts Fried . | . . . . . . Impact Corruptions . | . . . . . . Robots Melted . | . . . . . . Combat Hostiles . | . . . . . . Parts Melted 3 | . 1 . . 2 . Heat Transferred 2777 | . 285 . 827 1665 . Parts Sabotaged . | . . . . . . Parts Stolen . | . . . . . . Parts Stripped . | . . . . . . Power Chain Reactions . | . . . . . . Alert | -11 -10 -10 -9 -8 -8 ------- Run | Yrd Mat Min Mat Mat Sto Maximum Alert Level . | . . . . . . Low Security (%) 100 | 100 100 100 100 100 100 Level 1 . | . . . . . . Level 2 . | . . . . . . Level 3 . | . . . . . . Level 4 . | . . . . . . Level 5 . | . . . . . . High Security . | . . . . . . Max Security . | . . . . . . Peak Influence 161 | . 65 12 106 85 161 Initial 35 | . . 12 . 35 22 Average 51 | . 42 9 35 34 102 Influence Increases 1191 | . 82 . 210 436 463 Destroy 0b10 Robot/C 660 | . 60 . 140 280 180 Destroy 0b10 Robot/NC 15 | . 5 . 10 . . Destroy Leader 146 | . 12 . 34 50 50 Allied During Kill 9 | . . . . . 9 Successful Hack 37 | . 5 . 10 . 22 Disable Machine 15 | . . . . 15 . Destroy Structure 9 | . . . 1 1 7 Partial Spotted 60 | . . . . . 60 Lose Combat Pursuer 240 | . . . 15 90 135 Influence Decreases 1052 | . 50 30 126 469 377 Entered New Map 104 | . . 20 2 51 31 Time Decay 633 | . 50 10 114 253 206 Lost Part 240 | . . . 10 130 100 Lost Ally 40 | . . . . . 40 Purge Threat 35 | . . . . 35 . Squads Dispatched 8 | . 3 . 1 1 3 Investigation 4 | . 1 . 1 1 1 Extermination . | . . . . . . Reinforcement 2 | . 2 . . . . Assault 2 | . . . . . 2 Garrison . | . . . . . . Intercept . | . . . . . . Searches Triggered . | . . . . . . Construction Impeded . | . . . . . . Haulers Reinforced . | . . . . . . Active Scanning Responses . | . . . . . . Cargo Convoy Interrupts . | . . . . . . Stealth | -11 -10 -10 -9 -8 -8 --------- Run | Yrd Mat Min Mat Mat Sto Distress Signals 4 | . 2 . . 2 . Communications Jammed . | . . . . . . Distress Signals . | . . . . . . Times Spotted 69 | . 7 2 12 24 24 Peak Tracking Total 10 | . 5 3 4 8 10 Tactical Retreats 10 | . . . 1 3 6 Traps | -11 -10 -10 -9 -8 -8 ------- Run | Yrd Mat Min Mat Mat Sto Traps Triggered 1 | . . . . 1 . Indirectly . | . . . . . . Trap Hack Attempts . | . . . . . . Triggered . | . . . . . . Disarmed . | . . . . . . Reprogrammed . | . . . . . . Reused . | . . . . . . Traps Extracted . | . . . . . . Installed . | . . . . . . Triggered . | . . . . . . Machines | -11 -10 -10 -9 -8 -8 ---------- Run | Yrd Mat Min Mat Mat Sto Machines Disabled 1 | . . . . 1 . Max in Single Turn 1 | . . . . 1 . Machines Repaired . | . . . . . . Machines Dismantled . | . . . . . . Machines Sabotaged . | . . . . . . Overloaded Fab Kills . | . . . . . . Hacking | -11 -10 -10 -9 -8 -8 --------- Run | Yrd Mat Min Mat Mat Sto Machines Accessed 11 | . 3 . 3 2 3 Terminals 11 | . 3 . 3 2 3 Fabricators . | . . . . . . Repair Stations . | . . . . . . Recycling Units . | . . . . . . Scanalyzers . | . . . . . . Garrison Access . | . . . . . . Total Hacks 35 | . 11 . 6 6 12 Successful 16 | . 4 . 4 3 5 Failed 19 | . 7 . 2 3 7 Catastrophic 1 | . . . . 1 . Database Lockouts . | . . . . . . Manual 25 | . 8 . 6 4 7 Terminals 35 | . 11 . 6 6 12 Fabricators . | . . . . . . Repair Stations . | . . . . . . Recycling Units . | . . . . . . Scanalyzers . | . . . . . . Garrison Access . | . . . . . . Terminal Hacks 6 | . 1 . . 1 4 Level Access Points 1 | . . . . . 1 Branch Access Points 1 | . . . . . 1 Alert Level 1 | . . . . . 1 Unreport Threat 1 | . . . . 1 . Recall Reinforcements 1 | . 1 . . . . Zone Layout 1 | . . . . . 1 Fabricator Hacks . | . . . . . . Repair Station Hacks . | . . . . . . Recycling Unit Hacks . | . . . . . . Scanalyzer . | . . . . . . Garrison Access Hacks . | . . . . . . Unauthorized Hacks 10 | . 3 . 4 2 1 Terminals 10 | . 3 . 4 2 1 Assimilate 3 | . 1 . 1 1 . Botnet 7 | . 2 . 3 1 1 Fabricators . | . . . . . . Repair Stations . | . . . . . . Recycling Units . | . . . . . . Scanalyzers . | . . . . . . Garrison Access . | . . . . . . Data Cores Recovered . | . . . . . . Used . | . . . . . . Hacking Detections 10 | . 3 . 2 1 4 Full Trace Events 6 | . 1 . 1 1 3 Feedback Events . | . . . . . . Feedback Blocked . | . . . . . . Robot Schematics Acquired . | . . . . . . Robots Built . | . . . . . . Authchips . | . . . . . . Time . | . . . . . . Total Robot Build Rating . | . . . . . . Part Schematics Acquired . | . . . . . . Parts Built . | . . . . . . Authchips . | . . . . . . Time . | . . . . . . Total Part Build Rating . | . . . . . . Parts Repaired . | . . . . . . Time . | . . . . . . Parts Recycled . | . . . . . . Recycled Matter . | . . . . . . Retrieved Matter . | . . . . . . Retrieved Components . | . . . . . . Parts Scanalyzed . | . . . . . . Part Schematics Acquired . | . . . . . . Parts Damaged . | . . . . . . Bothacking | -11 -10 -10 -9 -8 -8 ------------ Run | Yrd Mat Min Mat Mat Sto Used RIF Installer . | . . . . . . Robots Hacked . | . . . . . . Non-combat . | . . . . . . Combat . | . . . . . . Robot Hacks Applied . | . . . . . . Relay Couplers Released . | . . . . . . Fabnet Peak Effective % . | . . . . . . Robots Rewired . | . . . . . . Allies Hacked . | . . . . . . Hacks Repelled . | . . . . . . Allies | -11 -10 -10 -9 -8 -8 -------- Run | Yrd Mat Min Mat Mat Sto Total Allies 2 | . . . . . 2 Largest Group 2 | . . . . . 2 Highest-Rated Group 62 | . . . . . 62 Highest-Rated Ally 31 | . . . . . 31 Total Orders . | . . . . . . Ally Attacks 24 | . . . . . 24 Total Damage 292 | . . . . . 292 Kills 3 | . . . . . 3 Allies Corrupted . | . . . . . . Allies Melted 1 | . . . . . 1 Intel | -11 -10 -10 -9 -8 -8 ------- Run | Yrd Mat Min Mat Mat Sto Active Infowar (turns) . | . . . . . . Robot Analysis Total . | . . . . . . Derelict Logs Recovered . | . . . . . . Drone Launches . | . . . . . . Drone Recoveries . | . . . . . . Exploration | -11 -10 -10 -9 -8 -8 ------------- Run | Yrd Mat Min Mat Mat Sto Turns Passed 1566 | 54 102 24 350 613 423 Spaces Moved 1126 | 47 87 27 277 308 380 Core 97 | 11 . . . 12 74 Treads . | . . . . . . Legs 345 | . . . 19 296 30 Wheels 408 | 36 87 27 258 . . Hover 276 | . . . . . 276 Flight . | . . . . . . Fastest Speed 38 | 50 90 90 90 120 38 Average Speed 88 | 80 90 90 93 130 50 Slowest Speed 300 | 90 90 90 190 300 120 Overloaded Moves . | . . . . . . Propulsion Burnouts . | . . . . . . Robots Hopped . | . . . . . . Potential Cave-ins . | . . . . . . Cave-ins Triggered 1 | . . . . . 1 Exploration Rate (%) 18 | 3 14 12 30 24 29 Regions Visited 5 Branch Regions 2 Pre-discovered Areas . | . . . . . . Known Exits Taken . | . . . . . . Unknown Exits Taken 5 | 1 1 1 1 1 . Scrap Searched . | . . . . . . Spaces Dug 5 | . . . . . 5 Terrain Destroyed 8 | . . . . 1 7 Melee . | . . . . . . Projectile 8 | . . . . 1 7 AOE . | . . . . . . Terrain Rammed . | . . . . . . Walls Destroyed . | . . . . . . Machines Disabled . | . . . . . . Actions | -11 -10 -10 -9 -8 -8 --------- Run | Yrd Mat Min Mat Mat Sto Total 1471 | 62 96 26 327 432 528 Wait 118 | . . . 13 27 78 Move 1121 | 46 86 26 276 307 380 Hop . | . . . . . . Pick Up 45 | 10 2 . 7 15 11 Fast Attach 2 | . . . 2 . . Attach 37 | 6 1 . 3 20 7 Detach . | . . . . . . Swap 2 | . . . . . 2 Drop 11 | . . . 4 3 4 Fire 110 | . 7 . 21 58 24 Melee 19 | . . . . . 19 Ram 5 | . . . 1 1 3 Kick 1 | . . . . 1 . Crush . | . . . . . . Escape Stasis . | . . . . . . Rewire . | . . . . . . Trap . | . . . . . . Miscellaneous . | . . . . . . Route ------- -11/Scrapyard -10/Materials -10/Mines -9/Materials -8/Materials -8/Storage (discovered 2 exits: Fac / Rec) History --------- Turn | Location | Event 26 | -11/Scrapyard | Discovered new exit (range 16) 55 | -11/Scrapyard | Entered Materials 142 | -10/Materials | Discovered new exit (range 6) 157 | -10/Materials | Entered Mines 162 | -10/Mines | Met a Derelict bent on vengeance 173 | -10/Mines | Discovered new exit (range 4) 181 | -10/Mines | Entered Materials 181 | -9/Materials | Evolved 2 slots: Propulsion x2 316 | -9/Materials | Build established: Mutant 436 | -9/Materials | Discovered new exit (range 4) 531 | -9/Materials | Entered another Materials area 531 | -8/Materials | Evolved 2 slots: Power x1, Utility x1 763 | -8/Materials | Lost 4 parts (1p1n1u1w) 946 | -8/Materials | Lost 4 parts (1p2n1w) 1003 | -8/Materials | Lost 3 parts (2n1w) 1051 | -8/Materials | Discovered new exit (range 14) 1123 | -8/Materials | Lost 3 parts (1p1u1w) 1144 | -8/Materials | Entered Storage 1171 | -8/Storage | Met a pair of Derelict thieves 1247 | -8/Storage | Identified exit to Recycling 1332 | -8/Storage | Crushed by falling debris 1390 | -8/Storage | Lost 6 parts (2p2n1u1w) 1489 | -8/Storage | Core integrity fell below 50% 1512 | -8/Storage | Identified exit to Factory 1528 | -8/Storage | Released all parts (3) 1531 | -8/Storage | Core integrity fell below 20% 1549 | -8/Storage | Lost 4 parts (1p1n1u1w) 1567 | -8/Storage | Destroyed by G-47 Trooper with Particle Gun Last Messages --------------- G-47 Trooper unfolds itself. I-25 Savior unfolds itself. Acquired 66 matter. U-05 Engineer builds a Door. Connecting with Terminal... >>Access(Main) Found 1 level access point to Factory: (61,68) Map updated. Aerolev Unit destroyed. Released Katana. Released Aerolev Unit. Released Weight Redist. System. Slammed into G-47 Trooper. Critical hit (Burn: +37). Slammed into G-47 Trooper. Destabilizing: Core damaged (-5). Critical hit (Burn: +37). K-01 Serf collects debris. /3 :#4OXCO75ZWGZQD4U,DWZHS Map ----- +----------------------------------------------------+ | # # ##T# ##????????????????? | | # # #### ##????????????????? | | # # ##########????????????????? | | # #! ##########????????????????? | | # #/= ##########????????????????? | | # T% ##########????????????????? | | #######% # # ##????????????????? | | ####### # " ##????????????????? | | #####T#^ # " ##????????????????? | | ????" + + "??????????????????????? | | ????" # ##T#??????????????????????? | | ????" # #?????????????????????????? | | ????#?# % #?????????????????????????? | | ??????# #?????????????????????????? | | ??????# #?????????????????????????? | | ??????# #?????????????????????????? | | ??????# #?????????????????????????? | | ??????# #?????????##########??????? | | ?###??# #?????????# #??????? | | ## #### #?????????# """"" #??????? | | # # #####+##### """"" #??????? | | # =#% % # """"" ###????? | | # /=/%/ + ""#????? | | #% *=#=*! # """"" T"#????? | | # #=% #####g###+# """"" ""#????? | | # # # @ g # """"" ###????? | | # # # g""""" # #??????? | | # # # "???" ## #######??????? | | # ! # # "??"" ####????????????? | | # # # ""??" #???????????????? | | # # # "???" #???????????????? | | # # # """"" #???????????????? | | ####+## # #???????????????? | | ???# ###########???????????????? | | ####+# #?????????????????????????? | | # # #??##?????????????????????? | | # + ### ######????????????????? | | # # #% #????????#???????? | | # # # #????""" #???????? | | # + !+! #????""" #???????? | | # #####% """" #??? """ #???????? | | # #???## """" #??? ^ ?????????? | | # #????# """" ##+#""######+###?? | | # #????# """" # % ?? | | ######????# # ??? | | ??????????# + #?????????? | | ??????????#"####"### #?????????? | | ??????????###?"# ### #?????????? | | ??????????????" ![ #?????????? | | ????????????>?" ] [ = #?????????? | +----------------------------------------------------+ Best States ------------- Heat Dissipation 31 Energy Generation 23 Energy Capacity 380 Matter Stores 300 Matter Capacity 300 Sight Range 16 Terrain Scan Density 10 Additional Mass Support 6 Core Shielding 20 Evasion (%) 57 Targeting Accuracy 8 Offensive Hacking 10 Item Schematics ----------------- None Robot Schematics ------------------ None Fabricated ------------ Nothing Repaired ---------- Nothing Alien Tech Used ----------------- None Achievements -------------- None Challenges ------------ None Game ------ Seed MetafieldGuidanceSheargun Manual? 0 Play Time 00:26:58 Cumulative 38.5 hours Start 2025.05.22 @ 19:30:21 End 2025.05.22 @ 20:01:27 Sessions 1 Manual Loads 0 Difficulty Rogue Special Mode None Game No. 62 Rogue 60 Adventurer 0 Explorer 2 Win Type - Total 0 Types 0/0/0/0/0/0/0/0/0/0 Lore% 24 Gallery% 27 Achievement% 28 Wizard Run 0 Options --------- Layout 1 ASCII 0 Keyboard 0 Movement Mouse Keybinds 0 Fullscreen 1 Font 24/Smallcaps Map View 50x35 Zoom Use 0% Tactical HUD 0 Map Filters NONE Filters NONE Steam 1 RUN: 97143831-3296-4068-a2ff-62a56e58737d